Workbook

Sheet Лист1
A1: Школа | C1: ГБОУ "Актанышская КШИ" | F1: Утвердил: | G1: должность | H1: директор
A2: Типовое примерное меню приготавливаемых блюд | G2: фамилия | H2: И.И. Ялалов
A3: Возрастная категория | E3: 11 лет и старше | G3: дата | H3: 9 | I3: 1 | J3: 2025
H4: день | I4: месяц | J4: год
A5: Неделя | B5: День недели | C5: Прием пищи | D5: Раздел меню | E5: Блюда | F5: Выход, г | G5: Белки | H5: Жиры | I5: Углеводы | J5: Калорийность | K5: № рецептуры | L5: Цена
A6: 1 | B6: 1 | C6: Завтрак | D6: гор.блюдо
D8: гор.напиток
D9: хлеб
D10: фрукты
D12: итого | F12: =SUM(F6:F11) -> 0 | G12: =SUM(G6:G11) -> 0 | H12: =SUM(H6:H11) -> 0 | I12: =SUM(I6:I11) -> 0 | J12: =SUM(J6:J11) -> 0 | L12: =SUM(L6:L11) -> 0
A13: =A6 -> 1 | B13: =B6 -> 1 | C13: Завтрак 2 | D13: фрукты
D16: итого | F16: =SUM(F13:F15) -> 0 | G16: =SUM(G13:G15) -> 0 | H16: =SUM(H13:H15) -> 0 | I16: =SUM(I13:I15) -> 0 | J16: =SUM(J13:J15) -> 0 | L16: =SUM(L13:L21) -> 0
A17: =A6 -> 1 | B17: =B6 -> 1 | C17: Обед | D17: закуска | E17: Салат из свежих огурцов | F17: 100 | G17: 0.76 | H17: 6.09 | I17: 2.38 | J17: 67.3 | K17: 45 | L17: 8
D18: 1 блюдо | E18: Суп картофельный с крупой (рис) | F18: 250 | G18: 20.7 | H18: 15.34 | I18: 14.58 | J18: 169.34 | K18: 160 | L18: 27.46
D19: 2 блюдо | E19: курица отварная | F19: 120 | G19: 22.6 | H19: 17 | I19: 0 | J19: 243.4 | K19: 490 | L19: 42.3
D20: гарнир | E20: Макароны отварные | F20: 200 | G20: 7.36 | H20: 6.02 | I20: 35.26 | J20: 260.95 | K20: 229 | L20: 9.45
D21: напиток | E21: Чай с сахаром | F21: 200 | G21: 0.4 | H21: 0.1 | I21: 21.6 | J21: 62 | K21: 713 | L21: 1.68
D22: хлеб бел.
D23: хлеб черн. | E23: Хлеб ржаной йодир. | F23: 120 | G23: 10.2 | H23: 4 | I23: 51 | J23: 310.8 | K23: 3 | L23: 8.64
D26: итого | F26: =SUM(F17:F25) -> 990 | G26: =SUM(G17:G25) -> 62.02 | H26: =SUM(H17:H25) -> 48.55 | I26: =SUM(I17:I25) -> 124.82 | J26: =SUM(J17:J25) -> 1113.79 | L26: =SUM(L17:L25) -> 97.53
A27: =A6 -> 1 | B27: =B6 -> 1 | C27: Полдник | D27: булочное | E27: Коржик молочный | F27: 75 | G27: 4.83 | H27: 9.13 | I27: 39.6 | J27: 288 | K27: 5 | L27: 24
D28: напиток | E28: Компот из смеси сухофруктов | F28: 200 | G28: 0.66 | H28: 0.09 | I28: 32.01 | J28: 132.8 | K28: 30 | L28: 4.77
D29: сладкое | E29: запеканка из творога | F29: 110 | G29: 6.6 | H29: 25.3 | I29: 11.5 | J29: 151 | K29: 469 | L29: 40.25
D31: итого | F31: =SUM(F27:F30) -> 385 | G31: =SUM(G27:G30) -> 12.09 | H31: =SUM(H27:H30) -> 34.52 | I31: =SUM(I27:I30) -> 83.11 | J31: =SUM(J27:J30) -> 571.8 | L31: =SUM(L27:L30) -> 69.02
A32: =A6 -> 1 | B32: =B6 -> 1 | C32: Ужин | D32: гор.блюдо | E32: Рагу из овощей с мясом | F32: 200 | G32: 3.24 | H32: 17.36 | I32: 18.26 | J32: 242 | K32: 233 | L32: 31.6
D33: гарнир
D34: напиток | E34: Чай с сахаром | F34: 200 | G34: 0.4 | H34: 0.1 | I34: 21.6 | J34: 62 | K34: 713 | L34: 1.68
D35: хлеб | E35: Хлеб пшенич. йодир. | F35: 100 | G35: 10.7 | H35: 4.5 | I35: 43.5 | J35: 274 | K35: 1 | L35: 6.9
D36: закуска | E36: Масло по порциям | F36: 20 | G36: 0 | H36: 16.4 | I36: 0.2 | J36: 150 | K36: 41 | L36: 10.4
D37: фрукты | E37: Яблоки | F37: 250 | G37: 1.6 | H37: 1.6 | I37: 39.2 | J37: 188 | K37: 847 | L37: 52.75
D38: итого | F38: =SUM(F32:F37) -> 770 | G38: =SUM(G32:G37) -> 15.94 | H38: =SUM(H32:H37) -> 39.96 | I38: =SUM(I32:I37) -> 122.76 | J38: =SUM(J32:J37) -> 916 | L38: =SUM(L32:L37) -> 103.33
A39: =A6 -> 1 | B39: =B6 -> 1 | C39: Ужин 2 | D39: кисломол. | E39: кефир | F39: 200 | G39: 10 | H39: 6.4 | I39: 7 | J39: 108 | K39: 966 | L39: 26.46
D40: булочное | E40: печенье сливочное | F40: 25 | G40: 0.8 | H40: 6 | I40: 12 | J40: 106 | L40: 4.02
D41: напиток
D42: фрукты
D45: итого | F45: =SUM(F39:F39) -> 200 | G45: =SUM(G39:G39) -> 10 | H45: =SUM(H39:H39) -> 6.4 | I45: =SUM(I39:I39) -> 7 | J45: =SUM(J39:J39) -> 108 | L45: =SUM(L39:L39) -> 26.46
A46: =A6 -> 1 | B46: =B6 -> 1 | C46: Итого за день: | F46: =F12+F16+F26+F31+F38+F45 -> 2345 | G46: =G12+G16+G26+G31+G38+G45 -> 100.05 | H46: =H12+H16+H26+H31+H38+H45 -> 129.43 | I46: =I12+I16+I26+I31+I38+I45 -> 337.69 | J46: =J12+J16+J26+J31+J38+J45 -> 2709.59 | L46: =SUM(L26,L31,L38,L45) -> 296.34
A47: 1 | B47: 2 | C47: Завтрак | D47: гор.блюдо | E47: Каша манная | F47: 200 | G47: 4.52 | H47: 4.07 | I47: 35.46 | J47: 197 | K47: 284 | L47: 20.46
D48: гор.блюдо | E48: Яйцо вкрутую | F48: 40 | G48: 5.1 | H48: 4.6 | I48: 0.3 | J48: 63 | K48: 306 | L48: 7.5
D49: гор.напиток | E49: Чай с сахаром | F49: 200 | G49: 0.4 | H49: 0.1 | I49: 21.6 | J49: 62 | K49: 713 | L49: 1.68
D50: хлеб | E50: Хлеб пшенич. йодир. | F50: 100 | G50: 10.7 | H50: 4.5 | I50: 43.5 | J50: 274 | K50: 1 | L50: 10.62
D54: итого | F54: =SUM(F47:F53) -> 540 | G54: =SUM(G47:G53) -> 20.72 | H54: =SUM(H47:H53) -> 13.27 | I54: =SUM(I47:I53) -> 100.86 | J54: =SUM(J47:J53) -> 596 | L54: =SUM(L47:L53) -> 40.26
A55: =A47 -> 1 | B55: =B47 -> 2 | C55: Завтрак 2 | D55: фрукты
D58: итого | F58: =SUM(F55:F56) -> 0 | G58: =SUM(G55:G56) -> 0 | H58: =SUM(H55:H56) -> 0 | I58: =SUM(I55:I56) -> 0 | J58: =SUM(J55:J56) -> 0 | L58: =SUM(L55:L63) -> 0
A59: =A47 -> 1 | B59: =B47 -> 2 | C59: Обед | D59: закуска | E59: Салат из помидоров | F59: 100 | G59: 1.13 | H59: 6.19 | I59: 4.72 | J59: 79.11 | K59: 48 | L59: 16.09
D60: 1 блюдо | E60: Щи из свежей капусты с картофелем | F60: 250 | G60: 20.5 | H60: 17.5 | I60: 125.5 | J60: 157.04 | K60: 145 | L60: 32.87
D61: 2 блюдо | E61: Гуляш из говядины | F61: 100 | G61: 23.8 | H61: 19.52 | I61: 5.74 | J61: 293.84 | K61: 443 | L61: 56.24
D62: гарнир | E62: Каша гречневая рассыпчатая | F62: 200 | G62: 9.94 | H62: 7.48 | I62: 47.78 | J62: 298.2 | K62: 282 | L62: 19.2
D63: напиток | E63: Компот из смеси сухофруктов | F63: 200 | G63: 0.66 | H63: 0.09 | I63: 32.01 | J63: 132.8 | K63: 30 | L63: 4.77
D64: хлеб бел.
D65: хлеб черн. | E65: Хлеб ржаной йодир. | F65: 120 | G65: 10.2 | H65: 4 | I65: 51 | J65: 310.8 | K65: 3 | L65: 8.23
D68: итого | F68: =SUM(F59:F67) -> 970 | G68: =SUM(G59:G67) -> 66.23 | H68: =SUM(H59:H67) -> 54.78 | I68: =SUM(I59:I67) -> 266.75 | J68: =SUM(J59:J67) -> 1271.79 | L68: =SUM(L59:L67) -> 137.4
A69: =A47 -> 1 | B69: =B47 -> 2 | C69: Полдник | D69: булочное | E69: булочки | F69: 75 | G69: 7.2 | H69: 22.6 | I69: 41.6 | J69: 398.6 | K69: 1 | L69: 23
D70: напиток | E70: Чай с сахаром | F70: 200 | G70: 0.4 | H70: 0.1 | I70: 21.6 | J70: 62 | K70: 713 | L70: 1.68
D71: фрукты | E71: Груши | F71: 250 | G71: 1.5 | H71: 1 | I71: 48.8 | J71: 228.48 | K71: 847 | L71: 55.18
D73: итого | F73: =SUM(F69:F71) -> 525 | G73: =SUM(G69:G71) -> 9.1 | H73: =SUM(H69:H71) -> 23.7 | I73: =SUM(I69:I71) -> 112 | J73: =SUM(J69:J71) -> 689.08 | L73: =SUM(L69:L71) -> 79.86
A74: =A47 -> 1 | B74: =B47 -> 2 | C74: Ужин | D74: гор.блюдо | E74: Рыба запеченная | F74: 120 | G74: 26.6 | H74: 9.4 | I74: 20.1 | J74: 133 | K74: 354 | L74: 50.94
D75: гарнир | E75: Картофельное пюре | F75: 200 | G75: 4.08 | H75: 6.4 | I75: 27.26 | J75: 241 | K75: 525 | L75: 26.43
D76: напиток | E76: Чай с сахаром | F76: 200 | G76: 0.4 | H76: 0.1 | I76: 21.6 | J76: 62 | K76: 713 | L76: 1.68
D77: хлеб | E77: Хлеб пшенич. йодир. | F77: 100 | G77: 10.7 | H77: 4.5 | I77: 43.5 | J77: 274 | K77: 1 | L77: 10.62
D80: итого | F80: =SUM(F74:F79) -> 620 | G80: =SUM(G74:G79) -> 41.78 | H80: =SUM(H74:H79) -> 20.4 | I80: =SUM(I74:I79) -> 112.46 | J80: =SUM(J74:J79) -> 710 | L80: =SUM(L74:L79) -> 89.67
A81: =A47 -> 1 | B81: =B47 -> 2 | C81: Ужин 2 | D81: кисломол. | E81: снежок | F81: 200 | G81: 2.8 | H81: 2.5 | I81: 4 | J81: 118 | K81: 966 | L81: 23.48
D82: булочное
D83: напиток
D84: фрукты
D87: итого | F87: =SUM(F81:F86) -> 200 | G87: =SUM(G81:G86) -> 2.8 | H87: =SUM(H81:H86) -> 2.5 | I87: =SUM(I81:I86) -> 4 | J87: =SUM(J81:J86) -> 118 | L87: =SUM(L81:L86) -> 23.48
A88: =A47 -> 1 | B88: =B47 -> 2 | C88: Итого за день: | F88: =F54+F58+F68+F73+F80+F87 -> 2855 | G88: =G54+G58+G68+G73+G80+G87 -> 140.63 | H88: =H54+H58+H68+H73+H80+H87 -> 114.65 | I88: =I54+I58+I68+I73+I80+I87 -> 596.07 | J88: =J54+J58+J68+J73+J80+J87 -> 3384.87 | L88: =SUM(L54,L68,L73,L80,L87) -> 370.67
A89: 1 | B89: 3 | C89: Завтрак | D89: гор.блюдо | E89: Каша геркулесовая | F89: 200 | G89: 6.21 | H89: 5.28 | I89: 32.79 | J89: 203 | K89: 284 | L89: 20.54
D90: закуска | E90: Сыр порциями | F90: 20 | G90: 3.48 | H90: 4.43 | I90: 0 | J90: 72.8 | K90: 42 | L90: 10.20
D91: гор.напиток | E91: кисель | F91: 200 | G91: 0.2 | H91: 0 | I91: 14 | J91: 131.2 | K91: 651 | L91: 2.90
D92: хлеб | E92: Хлеб пшенич. йодир. | F92: 100 | G92: 10.7 | H92: 4.5 | I92: 43.5 | J92: 274 | K92: 1 | L92: 10.62
D96: итого | F96: =SUM(F89:F95) -> 520 | G96: =SUM(G89:G95) -> 20.59 | H96: =SUM(H89:H95) -> 14.21 | I96: =SUM(I89:I95) -> 90.29 | J96: =SUM(J89:J95) -> 681 | L96: =SUM(L89:L95) -> 44.26
A97: =A89 -> 1 | B97: =B89 -> 3 | C97: Завтрак 2
D99: итого | F99: =SUM(F97:F98) -> 0 | G99: =SUM(G97:G98) -> 0 | H99: =SUM(H97:H98) -> 0 | I99: =SUM(I97:I98) -> 0 | J99: =SUM(J97:J98) -> 0 | L99: =SUM(L97:L104) -> 0
A100: =A89 -> 1 | B100: =B89 -> 3 | C100: Обед | D100: закуска | E100: Салат из варен свеклы | F100: 100 | G100: 1.43 | H100: 6.09 | I100: 8.36 | J100: 93.97 | K100: 65 | L100: 3.8
D101: 1 блюдо | E101: Суп картофельный с макаронными изделиями | F101: 250 | G101: 21.39 | H101: 15.44 | I101: 17.14 | J101: 176.42 | K101: 163 | L101: 26.42
D102: 2 блюдо | E102: котлеты говяжие | F102: 100 | G102: 16.5 | H102: 24.2 | I102: 14.32 | J102: 344 | K102: 466 | L102: 41.03
D103: гарнир | E103: Каша пшеничная | F103: 200 | G103: 8.8 | H103: 5.84 | I103: 47.02 | J103: 284 | K103: 282 | L103: 20.39
D104: напиток | E104: сок виноградный | F104: 200 | G104: 0.6 | H104: 0.4 | I104: 32.6 | J104: 136.4 | K104: 389 | L104: 15.6
D105: хлеб бел.
D106: хлеб черн. | E106: Хлеб ржаной йодир. | F106: 120 | G106: 10.2 | H106: 4 | I106: 51 | J106: 310.8 | K106: 3 | L106: 8.23
D109: итого | F109: =SUM(F100:F112) -> 1220 | G109: =SUM(G100:G112) -> 59.82 | H109: =SUM(H100:H112) -> 56.37 | I109: =SUM(I100:I112) -> 200.74 | J109: =SUM(J100:J112) -> 1488.09 | L109: =SUM(L100:L108) -> 115.47
A110: =A89 -> 1 | B110: =B89 -> 3 | C110: Полдник | D110: булочное | E110: Булочка с изюмом | F110: 75 | G110: 9.64 | H110: 6.1 | I110: 63.91 | J110: 378 | K110: 6 | L110: 23
D111: напиток | E111: Кофейный напиток | F111: 200 | G111: 3.6 | H111: 2.67 | I111: 29.2 | J111: 155.23 | K111: 719 | L111: 9.73
D112: фрукты | E112: груша | F112: 250 | G112: 0.9 | H112: 0.4 | I112: 30.3 | J112: 142.5 | K112: 847 | L112: 55.18
D114: итого | F114: =SUM(F110:F112) -> 525 | G114: =SUM(G110:G112) -> 14.14 | H114: =SUM(H110:H112) -> 9.17 | I114: =SUM(I110:I112) -> 123.41 | J114: =SUM(J110:J112) -> 675.73 | L114: =SUM(L110:L112) -> 87.91
A115: =A89 -> 1 | B115: =B89 -> 3 | C115: Ужин | D115: гор.блюдо | E115: Плов | F115: 250 | G115: 23.57 | H115: 19.5 | I115: 23.28 | J115: 357.23 | K115: 450 | L115: 61.69
D116: гарнир
D117: напиток | E117: Чай с сахаром | F117: 200 | G117: 0 | H117: 0.1 | I117: 21.6 | J117: 62 | K117: 713 | L117: 1.68
D118: хлеб | E118: Хлеб пшенич. йодир. | F118: 100 | G118: 10.7 | H118: 4.5 | I118: 43.5 | J118: 274 | K118: 1 | L118: 10.62
D121: итого | F121: =SUM(F115:F119) -> 550 | G121: =SUM(G115:G119) -> 34.27 | H121: =SUM(H115:H119) -> 24.1 | I121: =SUM(I115:I119) -> 88.38 | J121: =SUM(J115:J119) -> 693.23 | L121: =SUM(L115:L119) -> 73.99
A122: =A89 -> 1 | B122: =B89 -> 3 | C122: Ужин 2 | D122: кисломол. | E122: Катык | F122: 200 | G122: 5.6 | H122: 5 | I122: 8 | J122: 100 | K122: 966 | L122: 26.46
D123: булочное | E123: печенье сливочное | F123: 25 | G123: 1.6 | H123: 2.6 | I123: 13.4 | J123: 42 | K123: 9 | L123: 4.06
D124: напиток
D125: фрукты
D128: итого | F128: =SUM(F122:F126) -> 225 | G128: =SUM(G122:G126) -> 7.2 | H128: =SUM(H122:H126) -> 7.6 | I128: =SUM(I122:I126) -> 21.4 | J128: =SUM(J122:J126) -> 142 | L128: =SUM(L122:L126) -> 30.52
A129: =A89 -> 1 | B129: =B89 -> 3 | C129: Итого за день: | F129: =F96+F99+F109+F114+F121+F128 -> 2810 | G129: =G96+G99+G109+G114+G121+G128 -> 135.12 | H129: =H96+H99+H109+H114+H121+H128 -> 127.45 | I129: =I96+I99+I109+I114+I121+I128 -> 494.12 | J129: =J96+J99+J109+J114+J121+J128 -> 3624.32 | L129: =SUM(L96,L109,L114,L121,L128) -> 352.15
A130: 1 | B130: 4 | C130: Завтрак | D130: гор.блюдо | E130: Каша пшенная молочная | F130: 200 | G130: 8.8 | H130: 7.62 | I130: 50.5 | J130: 305.78 | K130: 282 | L130: 20.95
D131: закуска | E131: Масло по порциям | F131: 20 | G131: 0 | H131: 16.4 | I131: 0.2 | J131: 150 | K131: 41 | L131: 25.06
D132: гор.напиток | E132: Чай с сахаром | F132: 200 | G132: 0.4 | H132: 0.1 | I132: 21.6 | J132: 62 | K132: 713 | L132: 1.68
D133: хлеб | E133: Хлеб пшенич. йодир. | F133: 100 | G133: 10.7 | H133: 4.5 | I133: 43.5 | J133: 274 | K133: 1 | L133: 10.62
D135: итого | F135: =SUM(F130:F134) -> 520 | G135: =SUM(G130:G134) -> 19.9 | H135: =SUM(H130:H134) -> 28.62 | I135: =SUM(I130:I134) -> 115.8 | J135: =SUM(J130:J134) -> 791.78 | L135: =SUM(L130:L134) -> 58.31
A136: =A130 -> 1 | B136: =B130 -> 4 | C136: Завтрак 2
D138: итого | F138: =SUM(F136:F137) -> 0 | G138: =SUM(G136:G137) -> 0 | H138: =SUM(H136:H137) -> 0 | I138: =SUM(I136:I137) -> 0 | J138: =SUM(J136:J137) -> 0 | L138: =SUM(L136:L143) -> 0
A139: =A130 -> 1 | B139: =B130 -> 4 | C139: Обед | D139: закуска | E139: Салат из свежих помидоров и огурцов | F139: 100 | G139: 0.98 | H139: 6.15 | I139: 3.73 | J139: 74.2 | K139: 49 | L139: 12
D140: 1 блюдо | E140: Борщ с капустой и картофелем | F140: 250 | G140: 20.5 | H140: 16.6 | I140: 125.25 | J140: 171.04 | K140: 133 | L140: 32.93
D141: 2 блюдо | E141: Сосиски отв | F141: 140 | G141: 22.6 | H141: 17 | I141: 0 | J141: 243.4 | K141: 490 | L141: 29.59
D142: гарнир | E142: Каша рисовая | F142: 200 | G142: 3.09 | H142: 4.07 | I142: 36.98 | J142: 197 | K142: 282 | L142: 22.76
D143: напиток | E143: Компот из смеси сухофруктов | F143: 200 | G143: 0.66 | H143: 0.09 | I143: 32.01 | J143: 132.8 | K143: 30 | L143: 4.77
D144: хлеб бел.
D145: хлеб черн. | E145: Хлеб ржаной йодир. | F145: 120 | G145: 10.2 | H145: 4 | I145: 51 | J145: 310.8 | K145: 3 | L145: 8.23
D148: итого | F148: =SUM(F139:F147) -> 1010 | G148: =SUM(G139:G147) -> 58.03 | H148: =SUM(H139:H147) -> 47.91 | I148: =SUM(I139:I147) -> 248.97 | J148: =SUM(J139:J147) -> 1129.24 | L148: =SUM(L139:L147) -> 110.28
A149: =A130 -> 1 | B149: =B130 -> 4 | C149: Полдник | D149: булочное | E149: Кекс Волжский | F149: 75 | G149: 5.2 | H149: 10.9 | I149: 27.5 | J149: 228 | K149: 10 | L149: 23
D150: напиток | E150: Кисель | F150: 200 | G150: 0.2 | H150: 0 | I150: 32.6 | J150: 131.2 | K150: 651 | L150: 2.9
D151: закуска | E151: Омлет натуральный | F151: 100 | G151: 14.42 | H151: 23.8 | I151: 2.24 | J151: 240 | K151: 210 | L151: 6.58
D153: итого | F153: =SUM(F150:F152,F149) -> 375 | G153: =SUM(G150:G152,G149) -> 19.82 | H153: =SUM(H150:H152,H149) -> 34.7 | I153: =SUM(I150:I152,I149) -> 62.34 | J153: =SUM(J149:J152) -> 599.2 | L153: =SUM(L149:L152) -> 32.48
A154: =A130 -> 1 | B154: =B130 -> 4 | C154: Ужин | D154: гор.блюдо | E154: Пельмени на бульоне | F154: 200 | G154: 23.2 | H154: 30.6 | I154: 18.1 | J154: 440.6 | K154: 118 | L154: 72.6
D155: гарнир
D156: напиток | E156: Чай с сахаром | F156: 200 | G156: 0.4 | H156: 0.1 | I156: 21.6 | J156: 62 | K156: 713 | L156: 1.68
D157: хлеб | E157: Хлеб пшенич. йодир. | F157: 100 | G157: 10.7 | H157: 4.5 | I157: 43.5 | J157: 274 | K157: 1 | L157: 10.62
D160: итого | F160: =SUM(F154:F158) -> 500 | G160: =SUM(G154:G158) -> 34.3 | H160: =SUM(H154:H158) -> 35.2 | I160: =SUM(I154:I158) -> 83.2 | J160: =SUM(J154:J158) -> 776.6 | L160: =SUM(L154:L158) -> 84.9
A161: =A130 -> 1 | B161: =B130 -> 4 | C161: Ужин 2 | D161: кисломол. | E161: ряженка | F161: 200 | G161: 5.8 | H161: 5 | I161: 8.4 | J161: 108 | K161: 966 | L161: 10.83
D162: булочное
D163: напиток
D164: фрукты
D167: итого | F167: =SUM(F161:F165) -> 200 | G167: =SUM(G161:G165) -> 5.8 | H167: =SUM(H161:H165) -> 5 | I167: =SUM(I161:I165) -> 8.4 | J167: =SUM(J161:J165) -> 108 | L167: =SUM(L161:L165) -> 10.83
A168: =A130 -> 1 | B168: =B130 -> 4 | C168: Итого за день: | F168: =F135+F138+F148+F153+F160+F167 -> 2605 | G168: =G135+G138+G148+G153+G160+G167 -> 137.85 | H168: =H135+H138+H148+H153+H160+H167 -> 151.43 | I168: =I135+I138+I148+I153+I160+I167 -> 518.71 | J168: =J135+J138+J148+J153+J160+J167 -> 3404.82 | L168: =SUM(L135,L148,L153,L160,L167) -> 296.8
A169: 1 | B169: 5 | C169: Завтрак | D169: гор.блюдо | E169: Каша манная | F169: 200 | G169: 4.52 | H169: 4.07 | I169: 35.46 | J169: 197 | K169: 284 | L169: 20.46
D171: гор.напиток | E171: Чай с сахаром | F171: 200 | G171: 0.4 | H171: 0.1 | I171: 21.6 | J171: 62 | K171: 713 | L171: 1.68
D172: хлеб | E172: Хлеб пшенич. йодир. | F172: 100 | G172: 10.7 | H172: 4.5 | I172: 43.5 | J172: 274 | K172: 1 | L172: 10.62
D173: фрукты
D174: закуска | E174: Сыр порциями | F174: 20 | G174: 3.48 | H174: 4.43 | I174: 0 | J174: 72.8 | K174: 42 | L174: 15
D175: закуска | E175: Масло по порциям | F175: 20 | G175: 0 | H175: 16.4 | I175: 0.2 | J175: 150 | K175: 41 | L175: 25.06
D176: итого | F176: =SUM(F169:F175) -> 540 | G176: =SUM(G169:G175) -> 19.1 | H176: =SUM(H169:H175) -> 29.5 | I176: =SUM(I169:I175) -> 100.76 | J176: =SUM(J169:J175) -> 755.8 | L176: =SUM(L169:L175) -> 72.82
A177: =A169 -> 1 | B177: =B169 -> 5 | C177: Завтрак 2 | D177: фрукты
D179: итого | F179: =SUM(F177:F178) -> 0 | G179: =SUM(G177:G178) -> 0 | H179: =SUM(H177:H178) -> 0 | I179: =SUM(I177:I178) -> 0 | J179: =SUM(J177:J178) -> 0 | L179: =SUM(L177:L184) -> 0
A180: =A169 -> 1 | B180: =B169 -> 5 | C180: Обед | D180: закуска | E180: Винегрет овощной | F180: 100 | G180: 1.7 | H180: 10.18 | I180: 6.7 | J180: 129.23 | K180: 75 | L180: 6
D181: 1 блюдо | E181: Суп картофельный с бобовыми | F181: 250 | G181: 24.19 | H181: 17.9 | I181: 16.33 | J181: 153.1 | K181: 162 | L181: 25.2
D182: 2 блюдо | E182: Рыба запеченная | F182: 120 | G182: 26.6 | H182: 9.4 | I182: 20.1 | J182: 133 | K182: 354 | L182: 60.27
D183: гарнир | E183: Картофельное пюре | F183: 200 | G183: 4.08 | H183: 6.4 | I183: 27.26 | J183: 182.96 | K183: 525 | L183: 26.43
D184: напиток | E184: Сок натуральный яблочный | F184: 200 | G184: 1 | H184: 0 | I184: 20.2 | J184: 84.8 | K184: 389 | L184: 15.6
D185: хлеб бел.
D186: хлеб черн. | E186: Хлеб ржаной йодир. | F186: 120 | G186: 10.2 | H186: 4 | I186: 48.8 | J186: 228.48 | K186: 1 | L186: 7.12
D189: итого | F189: =SUM(F180:F188) -> 990 | G189: =SUM(G180:G188) -> 67.77 | H189: =SUM(H180:H188) -> 47.88 | I189: =SUM(I180:I188) -> 139.39 | J189: =SUM(J180:J188) -> 911.57 | L189: =SUM(L180:L188) -> 140.62
A190: =A169 -> 1 | B190: =B169 -> 5 | C190: Полдник | D190: булочное
D191: напиток
D193: итого | F193: =SUM(F190:F192) -> 0 | G193: =SUM(G190:G192) -> 0 | H193: =SUM(H190:H192) -> 0 | I193: =SUM(I190:I192) -> 0 | J193: =SUM(J190:J192) -> 0 | L193: =SUM(L190:L192) -> 0
A194: =A169 -> 1 | B194: =B169 -> 5 | C194: Ужин | D194: гор.блюдо
D195: гарнир
D196: напиток
D197: хлеб
D199: итого | F199: =SUM(F194:F198) -> 0 | G199: =SUM(G194:G198) -> 0 | H199: =SUM(H194:H198) -> 0 | I199: =SUM(I194:I198) -> 0 | J199: =SUM(J194:J198) -> 0 | L199: =SUM(L194:L201) -> 0
A200: =A169 -> 1 | B200: =B169 -> 5 | C200: Ужин 2 | D200: кисломол.
D201: булочное
D202: напиток
D203: фрукты
D205: итого | F205: =SUM(F200:F204) -> 0 | G205: =SUM(G200:G204) -> 0 | H205: =SUM(H200:H204) -> 0 | I205: =SUM(I200:I204) -> 0 | J205: =SUM(J200:J204) -> 0 | L205: =SUM(L200:L207) -> 0
A206: =A169 -> 1 | B206: =B169 -> 5 | C206: Итого за день: | F206: =F176+F179+F189+F193+F199+F205 -> 1530 | G206: =G176+G179+G189+G193+G199+G205 -> 86.87 | H206: =H176+H179+H189+H193+H199+H205 -> 77.38 | I206: =I176+I179+I189+I193+I199+I205 -> 240.15 | J206: =J176+J179+J189+J193+J199+J205 -> 1667.37 | L206: =SUM(L176,L189) -> 213.44
A207: 2 | B207: 1 | C207: Завтрак | D207: гор.блюдо
D209: гор.напиток
D210: хлеб
D211: фрукты
D213: итого | F213: =SUM(F207:F212) -> 0 | G213: =SUM(G207:G212) -> 0 | H213: =SUM(H207:H212) -> 0 | I213: =SUM(I207:I212) -> 0 | J213: =SUM(J207:J212) -> 0 | L213: =SUM(L207:L212) -> 0
A214: =A207 -> 2 | B214: 1 | C214: Завтрак 2 | D214: фрукты
D216: итого | F216: =SUM(F214:F215) -> 0 | G216: =SUM(G214:G215) -> 0 | H216: =SUM(H214:H215) -> 0 | I216: =SUM(I214:I215) -> 0 | J216: =SUM(J214:J215) -> 0 | L216: =SUM(L214:L221) -> 0
A217: =A207 -> 2 | B217: =B207 -> 1 | C217: Обед | D217: закуска | E217: Салат витаминный | F217: 100 | G217: 1.3 | H217: 7.4 | I217: 7.8 | J217: 101 | K217: 63 | L217: 8
D218: 1 блюдо | E218: Суп картофельный с бобовыми | F218: 250 | G218: 24.19 | H218: 17.9 | I218: 16.33 | J218: 169.34 | K218: 162 | L218: 25.2
D219: 2 блюдо | E219: Курица с овощами | F219: 100 | G219: 22.6 | H219: 17 | I219: 0 | J219: 243.4 | K219: 490 | L219: 42.3
D220: гарнир | E220: Макароные изделия отварные с маслом | F220: 200 | G220: 7.36 | H220: 6.02 | I220: 35.26 | J220: 260.95 | K220: 229 | L220: 9.45
D221: напиток | E221: Чай с сахаром | F221: 200 | G221: 0.4 | H221: 0.1 | I221: 21.6 | J221: 62 | K221: 713 | L221: 1.68
D222: хлеб бел.
D223: хлеб черн. | E223: Хлеб ржаной йодир. | F223: 120 | G223: 10.2 | H223: 4 | I223: 51 | J223: 310.8 | K223: 3 | L223: 8.23
D225: итого | F225: =SUM(F217:F224) -> 970 | G225: =SUM(G217:G224) -> 66.05 | H225: =SUM(H217:H224) -> 52.42 | I225: =SUM(I217:I224) -> 131.99 | J225: =SUM(J217:J224) -> 1147.49 | L225: =SUM(L217:L224) -> 94.86
A226: =A207 -> 2 | B226: =B207 -> 1 | C226: Полдник | D226: булочное | E226: Кекс Завиток | F226: 75 | G226: 5.2 | H226: 10.9 | I226: 27.5 | J226: 228 | K226: 8 | L226: 23
D227: напиток | E227: Компот из смеси сухофруктов | F227: 200 | G227: 0.66 | H227: 0.09 | I227: 32.01 | J227: 132.8 | K227: 30 | L227: 4.77
D228: сладкое | E228: запеканка творожная со сметаной | F228: 100 | G228: 15.84 | H228: 3.78 | I228: 12.78 | J228: 151.2 | K228: 469 | L228: 40.25
D230: итого | F230: =SUM(F226:F229) -> 375 | G230: =SUM(G226:G229) -> 21.7 | H230: =SUM(H226:H229) -> 14.77 | I230: =SUM(I226:I229) -> 72.29 | J230: =SUM(J226:J229) -> 512 | L230: =SUM(L226:L229) -> 68.02
A231: =A207 -> 2 | B231: =B207 -> 1 | C231: Ужин | D231: гор.блюдо | E231: рагу из овощей с мясом | F231: 250 | G231: 3.24 | H231: 17.36 | I231: 18.26 | J231: 242 | K231: 233 | L231: 31.6
D232: гарнир
D233: напиток | E233: чай сладкий | F233: 200 | G233: 0.4 | H233: 0.1 | I233: 21.6 | J233: 62 | K233: 713 | L233: 1.68
D234: хлеб | E234: Хлеб пшенич. йодир. | F234: 100 | G234: 10.7 | H234: 4.5 | I234: 43.5 | J234: 274 | K234: 1 | L234: 6.48
D235: итого | F235: =SUM(F231:F234) -> 550 | G235: =SUM(G231:G234) -> 14.34 | H235: =SUM(H231:H234) -> 21.96 | I235: =SUM(I231:I234) -> 83.36 | J235: =SUM(J231:J234) -> 578 | L235: =SUM(L231:L234) -> 39.76
A236: =A207 -> 2 | B236: =B207 -> 1 | C236: Ужин 2 | D236: кисломол. | E236: снежок | F236: 200 | G236: 10 | H236: 7.4 | I236: 7 | J236: 118 | K236: 966 | L236: 23.48
D237: сладкое | E237: вафли | F237: 25 | G237: 1.9 | H237: 5.4 | I237: 19.8 | J237: 135 | K237: пром | L237: 4.06
D239: итого | F239: =SUM(F236:F238) -> 225 | G239: =SUM(G236:G238) -> 11.9 | H239: =SUM(H236:H238) -> 12.8 | I239: =SUM(I236:I238) -> 26.8 | J239: =SUM(J236:J238) -> 253 | L239: =SUM(L236:L238) -> 27.54
A240: =A207 -> 2 | B240: =B207 -> 1 | C240: Итого за день: | F240: =F213+F216+F225+F230+F235+F239 -> 2120 | G240: =G213+G216+G225+G230+G235+G239 -> 113.99 | H240: =H213+H216+H225+H230+H235+H239 -> 101.95 | I240: =I213+I216+I225+I230+I235+I239 -> 314.44 | J240: =J213+J216+J225+J230+J235+J239 -> 2490.49 | L240: =SUM(L225,L230,L235,L239) -> 230.18
A241: 2 | B241: 2 | C241: Завтрак | D241: гор.блюдо | E241: Каша манная | F241: 200 | G241: 4.52 | H241: 4.07 | I241: 35.46 | J241: 197 | K241: 284 | L241: 20.46
D242: закуска | E242: Яйцо вкрутую | F242: 40 | G242: 5.1 | H242: 4.6 | I242: 0.3 | J242: 63 | K242: 306 | L242: 7.4
D243: гор.напиток | E243: Чай с сахаром | F243: 200 | G243: 0.4 | H243: 0.1 | I243: 21.6 | J243: 62 | K243: 713 | L243: 1.68
D244: хлеб | E244: Хлеб пшенич. йодир. | F244: 100 | G244: 10.7 | H244: 4.5 | I244: 43.5 | J244: 274 | K244: 1 | L244: 10.62
D245: фрукты
D248: итого | F248: =SUM(F241:F247) -> 540 | G248: =SUM(G241:G247) -> 20.72 | H248: =SUM(H241:H247) -> 13.27 | I248: =SUM(I241:I247) -> 100.86 | J248: =SUM(J241:J247) -> 596 | L248: =SUM(L241:L247) -> 40.16
A249: =A241 -> 2 | B249: =B241 -> 2 | C249: Завтрак 2 | D249: фрукты
D252: итого | F252: =SUM(F249:F251) -> 0 | G252: =SUM(G249:G251) -> 0 | H252: =SUM(H249:H251) -> 0 | I252: =SUM(I249:I251) -> 0 | J252: =SUM(J249:J251) -> 0 | L252: =SUM(L249:L257) -> 0
A253: =A241 -> 2 | B253: =B241 -> 2 | C253: Обед | D253: закуска | E253: Салат из свежих помидоров и огурцов | F253: 100 | G253: 0.98 | H253: 6.15 | I253: 3.073 | J253: 74.2 | K253: 49 | L253: 12
D254: 1 блюдо | E254: Борщ с капустой и картофелем | F254: 250 | G254: 20.5 | H254: 16.6 | I254: 125.25 | J254: 171.04 | K254: 133 | L254: 32.93
D255: 2 блюдо | E255: Гуляш из говядины | F255: 100 | G255: 23.8 | H255: 19.52 | I255: 5.74 | J255: 293.84 | K255: 443 | L255: 56.24
D256: гарнир | E256: Каша гречневая | F256: 200 | G256: 9.94 | H256: 7.48 | I256: 47.78 | J256: 298.2 | K256: 282 | L256: 19.2
D257: напиток | E257: Компот из смеси сухофруктов | F257: 200 | G257: 0.66 | H257: 0.09 | I257: 32.01 | J257: 132.8 | K257: 30 | L257: 4.77
D258: хлеб бел.
... 112 more rows
